fUST/lending_fUST_20240605
["ID","MTS","AMOUNT","RATE_DAILY","PERIOD"]
[328576963,1717557039308,-1000.0,0.00021838,2]
[328576965,1717557039317,-1000.0,0.00021839,2]
[328576966,1717557039327,-1000.0,0.00021852,2]
[328576968,1717557039337,-1000.0,0.0002186,2]
[328576970,1717557039347,-1000.0,0.00021876,2]
[328576972,1717557039360,-1906.73391069,0.00021876,2]
[328576973,1717557039369,-9151.98920854,0.00021877,2]
[328576975,1717557039379,-500.0,0.00021877,2]
[328576977,1717557039388,-500.0,0.00021877,2]
[328576979,1717557039399,-500.0,0.00021877,2]
[328576981,1717557039409,-500.0,0.00021877,2]
[328576984,1717557039419,-500.0,0.00021877,2]
[328576986,1717557039430,-20.87921172,0.00021877,2]
[328577035,1717557040187,-479.12078828,0.00021877,2]
[328577036,1717557040197,-500.0,0.00021877,2]
[328577037,1717557040206,-500.0,0.00021877,2]
[328577038,1717557040215,-500.0,0.00021877,2]
[328577039,1717557040225,-500.0,0.00021877,2]
[328577040,1717557040234,-500.0,0.00021877,2]
[328577041,1717557040243,-500.0,0.00021877,2]
[328577042,1717557040253,-500.0,0.00021877,2]
[328577043,1717557040262,-500.0,0.00021877,2]
[328577044,1717557040272,-500.0,0.00021877,2]
[328577045,1717557040282,-500.0,0.00021877,2]
[328577046,1717557040291,-500.0,0.00021877,2]
[328577047,1717557040301,-500.0,0.00021877,2]
[328577048,1717557040310,-500.0,0.00021877,2]
[328577049,1717557040320,-500.0,0.00021877,2]
[328577050,1717557040329,-500.0,0.00021877,2]
[328577051,1717557040340,-162.89447588,0.00021877,2]
[328577052,1717557040352,-500.0,0.00021877,2]
[328577053,1717557040362,-500.0,0.00021877,2]
[328577054,1717557040372,-500.0,0.00021877,2]
[328577055,1717557040382,-296.75884054,0.00021878,2]
[328577056,1717557040393,-1000.0,0.0002188,2]
[328577057,1717557040405,-224.92680056,0.0002188,2]
[328577058,1717557040415,-1353.96157468,0.0002188,2]
[328577059,1717557040431,-187.07400915,0.00021881,2]
[328577060,1717557040441,-1000.0,0.00021882,2]
[328577061,1717557040450,-405.81828468,0.00021882,2]
[328577062,1717557040460,-159.36947781,0.00021883,2]
[328577063,1717557040470,-1482.82824333,0.00021883,2]
[328577064,1717557040479,-252.23500693,0.00021884,2]
[328577065,1717557040489,-6684.96586629,0.00021885,2]
[328577066,1717557040498,-1831.15657956,0.00021885,2]
[328577067,1717557040509,-3000.0,0.000219,2]
[328577068,1717557040519,-270.0,0.000219,2]
[328577069,1717557040529,-160.0,0.000219,2]
[328577070,1717557040540,-1624.798351,0.000219,2]
[328577071,1717557040550,-216.79199363,0.00021908,2]
[328577072,1717557040559,-300.95262918,0.00021908,2]
[328577073,1717557040569,-3000.0,0.0002191,2]
[328577074,1717557040579,-157.61539865,0.00021911,2]
[328577075,1717557040588,-304.83421038,0.00021913,2]
[328577076,1717557040598,-240.60088404,0.00021913,2]
[328577077,1717557040608,-191.2458298,0.00021913,2]
[328577078,1717557040618,-157.03819726,0.00021913,2]
[328577079,1717557040627,-425.44121252,0.00021913,2]
[328577080,1717557040637,-500.0,0.00021913,2]
[328577081,1717557040646,-459.73673583,0.00021913,2]
[328577082,1717557040656,-500.0,0.00021913,2]
[328577083,1717557040665,-482.5991136,0.00021913,2]
[328577084,1717557040678,-404.04779436,0.00021913,2]
[328577085,1717557040687,-504.59696117,0.00021913,2]
[328577086,1717557040696,-500.0,0.00021913,2]
[328577087,1717557040705,-387.8326086,0.00021913,2]
[328577088,1717557040719,-405.86033441,0.00021913,2]
[328577089,1717557040732,-335.02477113,0.00021913,2]
[328577090,1717557040745,-500.0,0.00021913,2]
[328577091,1717557040758,-500.0,0.00021913,2]
[328577092,1717557040769,-500.0,0.00021913,2]
[328577093,1717557040779,-500.0,0.00021913,2]
[328577094,1717557040792,-391.21626777,0.00021913,2]
[328577095,1717557040803,-500.0,0.00021913,2]
[328577096,1717557040817,-500.0,0.00021913,2]
[328577097,1717557040829,-500.0,0.00021913,2]
[328577098,1717557040841,-500.0,0.00021913,2]
[328577099,1717557040854,-500.0,0.00021913,2]
[328577100,1717557040866,-156.12709699,0.00021914,2]
[328577101,1717557040878,-208.16929147,0.00021914,2]
[328577102,1717557040892,-194.9003054,0.00021914,2]
[328577103,1717557040905,-156.80835983,0.00021914,2]
[328577104,1717557040917,-190.8935347,0.00021914,2]
[328577105,1717557040929,-302.88615397,0.00021914,2]
[328577106,1717557040942,-2337.76862986,0.00021914,2]
[328577107,1717557040953,-534.43988691,0.00021914,2]
[328577108,1717557040965,-569.92987524,0.00021914,2]
[328577109,1717557040977,-247.36908832,0.00021914,7]
[328577110,1717557040989,-774.82382737,0.00021914,2]
[328577111,1717557041000,-188.52160565,0.00021914,2]
[328577112,1717557041012,-163.55282016,0.00021914,2]
[328577113,1717557041023,-261.59704112,0.00021914,2]
[328577114,1717557041033,-900.79856489,0.00021914,2]
[328577115,1717557041045,-155.69703263,0.00021914,2]
[328577116,1717557041056,-155.21486008,0.00021914,2]
[328577117,1717557041068,-2510.86306463,0.00021914,2]
[328577118,1717557041080,-158.24911226,0.00021914,2]
[328577119,1717557041093,-162.93661136,0.00021915,2]
[328577120,1717557041104,-2225.9964583,0.00021915,2]
[328577121,1717557041115,-8203.39988141,0.00021915,2]
[328577122,1717557041128,-2742.87444362,0.00021916,2]
[328577123,1717557041140,-44783.73614603,0.00021917,7]
[328577124,1717557041153,-17689.92554608,0.00021917,7]
[328577125,1717557041165,-500.0,0.00021917,2]
[328577126,1717557041177,-151.0,0.00021917,2]
[328577127,1717557041187,-151.0,0.00021917,2]
[328577128,1717557041197,-151.0,0.00021917,2]
[328577129,1717557041207,-151.0,0.00021917,2]
[328577130,1717557041217,-227.12347,0.00021917,2]
[328577132,1717557041228,-507.156622,0.00021917,2]
[328577134,1717557041240,-502.61576142,0.00021917,2]
[328577135,1717557041252,-506.52030595,0.00021917,2]
[328577136,1717557041265,-509.26213873,0.00021917,2]
[328577137,1717557041277,-500.0,0.00021917,2]
[328577138,1717557041287,-504.06547218,0.00021917,2]
[328577139,1717557041299,-550.81434249,0.00021917,2]
[328577140,1717557041310,-500.0,0.00021917,2]
[328577141,1717557041323,-503.57153726,0.00021917,2]
[328577142,1717557041335,-501.92608352,0.00021917,2]
[328577143,1717557041346,-500.0,0.00021917,2]
[328577144,1717557041360,-598.16609498,0.00021917,2]
[328577145,1717557041371,-503.1788052,0.00021917,2]
[328577146,1717557041381,-501.2949302,0.00021917,2]
[328577147,1717557041392,-502.66196248,0.00021917,2]
[328577148,1717557041405,-502.18552446,0.00021917,2]
[328577149,1717557041416,-502.42529953,0.00021917,2]
[328577150,1717557041430,-500.0,0.00021917,2]
[328577151,1717557041442,-502.50124875,0.00021917,2]
[328577152,1717557041453,-500.65317362,0.00021917,2]
[328577153,1717557041464,-500.0,0.00021917,2]
[328577154,1717557041475,-505.20603187,0.00021917,2]
[328577155,1717557041486,-502.95859387,0.00021917,2]
[328577156,1717557041497,-506.29830771,0.00021917,2]
[328577157,1717557041507,-500.0,0.00021917,2]
[328577158,1717557041517,-511.31254699,0.00021917,2]
[328577159,1717557041528,-505.87231062,0.00021917,2]
[328577160,1717557041539,-427.87229096,0.00021917,2]
[328577161,1717557041550,-502.64730158,0.00021917,2]
[328577162,1717557041560,-501.16330723,0.00021917,2]
[328577163,1717557041572,-560.0,0.00021917,2]
[328577164,1717557041584,-503.10562958,0.00021917,2]
[328577165,1717557041595,-500.0,0.00021917,2]
[328577166,1717557041606,-500.0,0.00021917,2]
[328577167,1717557041618,-500.0,0.00021917,2]
[328577168,1717557041630,-520.95267432,0.00021917,2]
[328577170,1717557041641,-502.70956767,0.00021917,2]
[328577171,1717557041652,-500.0,0.00021917,2]
[328577172,1717557041663,-522.11048712,0.00021917,2]
[328577173,1717557041676,-500.0,0.00021917,2]
[328577174,1717557041687,-500.0,0.00021917,2]
[328577175,1717557041698,-522.77852281,0.00021917,2]
[328577176,1717557041709,-503.61421063,0.00021917,2]
[328577177,1717557041720,-500.0,0.00021917,2]
[328577178,1717557041731,-501.94110022,0.00021917,2]
[328577179,1717557041742,-502.08771994,0.00021917,2]
[328577180,1717557041752,-502.46449314,0.00021917,2]
[328577181,1717557041763,-510.5646425,0.00021917,2]
[328577182,1717557041774,-513.12873496,0.00021917,2]
[328577183,1717557041785,-500.55184473,0.00021917,2]
[328577184,1717557041795,-1002.75606946,0.00021917,2]
[328577185,1717557041807,-501.20138686,0.00021917,2]
[328577186,1717557041818,-501.11342691,0.00021917,2]
[328577187,1717557041831,-500.0,0.00021917,2]
[328577188,1717557041842,-502.5495706,0.00021917,2]
[328577189,1717557041853,-500.0,0.00021917,2]
[328577190,1717557041864,-501.89445,0.00021917,2]
[328577191,1717557041873,-155.55681225,0.00021917,2]
[328577192,1717557042000,-502.71530341,0.00021917,2]
[328577193,1717557042010,-502.25328245,0.00021917,2]
[328577194,1717557042019,-500.95208806,0.00021917,2]
[328577195,1717557042030,-500.0,0.00021917,2]
[328577196,1717557042038,-503.08012288,0.00021917,2]
[328577197,1717557042047,-500.0,0.00021917,2]
[328577198,1717557042056,-500.58469016,0.00021917,2]
[328577199,1717557042066,-500.9040718,0.00021917,2]
[328577200,1717557042075,-502.90434989,0.00021917,2]
[328577201,1717557042085,-577.6340726,0.00021917,2]
[328577202,1717557042094,-342.34821239,0.00021917,2]
[328577203,1717557042103,-501.10106175,0.00021917,2]
[328577204,1717557042112,-502.78190239,0.00021917,2]
[328577205,1717557042122,-503.16132316,0.00021917,2]
[328577206,1717557042131,-500.34880441,0.00021917,2]
[328577207,1717557042140,-372.40764256,0.00021917,2]
[328577208,1717557042149,-500.0,0.00021917,2]
[328577209,1717557042159,-501.54217107,0.00021917,2]
[328577210,1717557042167,-502.38524754,0.00021917,2]
[328577211,1717557042178,-504.5,0.00021917,2]
[328577212,1717557042186,-500.36665068,0.00021917,2]
[328577213,1717557042196,-502.70460534,0.00021917,2]
[328577214,1717557042205,-500.0,0.00021917,2]
[328577215,1717557042214,-501.68677413,0.00021917,2]
[328577216,1717557042223,-500.0,0.00021917,2]
[328577217,1717557042233,-500.0,0.00021917,2]
[328577218,1717557042242,-502.00969004,0.00021917,2]
[328577219,1717557042251,-501.8476572,0.00021917,2]
[328577220,1717557042261,-502.04201976,0.00021917,2]
[328577221,1717557042270,-538.93472983,0.00021917,2]
[328577222,1717557042279,-508.07434955,0.00021917,2]
[328577223,1717557042288,-511.01044749,0.00021917,2]
[328577224,1717557042297,-501.99559727,0.00021917,2]
[328577225,1717557042307,-500.0,0.00021917,2]
[328577226,1717557042316,-500.0,0.00021917,2]
[328577227,1717557042325,-500.0,0.00021917,2]
[328577228,1717557042335,-463.88394275,0.00021917,2]
[328577229,1717557042349,-503.04373706,0.00021917,2]
[328577230,1717557042358,-506.03609488,0.00021917,2]
[328577231,1717557042367,-502.76241422,0.00021917,2]
[328577232,1717557042376,-505.00691666,0.00021917,2]
[328577233,1717557042385,-502.41747665,0.00021917,2]
[328577234,1717557042396,-611.6393722,0.00021917,2]
[328577235,1717557042407,-505.57156808,0.00021917,2]
[328577236,1717557042417,-503.28066565,0.00021917,2]
[328577237,1717557042428,-505.19067982,0.00021917,2]
[328577238,1717557042438,-500.0,0.00021917,2]
[328577239,1717557042447,-500.45619962,0.00021917,2]
[328577240,1717557042456,-500.0,0.00021917,2]
[328577241,1717557042465,-504.10269604,0.00021917,2]
[328577242,1717557042474,-503.15008466,0.00021917,2]
[328577243,1717557042483,-500.0,0.00021917,2]
[328577244,1717557042492,-500.0,0.00021917,2]
[328577245,1717557042503,-504.83989195,0.00021917,2]
[328577246,1717557042513,-151.0,0.00021917,2]
[328577247,1717557042522,-151.0,0.00021917,2]
[328577248,1717557042531,-151.0,0.00021917,2]
[328577249,1717557042540,-151.0,0.00021917,2]
[328577251,1717557042548,-151.0,0.00021917,2]
[328577252,1717557042558,-151.0,0.00021917,2]
[328577253,1717557042567,-151.0,0.00021917,2]
[328577254,1717557042575,-151.0,0.00021917,2]
[328577255,1717557042584,-151.0,0.00021917,2]
[328577256,1717557042593,-161.57823,0.00021917,2]
[328577257,1717557042602,-504.90017809,0.00021917,2]
[328577258,1717557042612,-500.0,0.00021917,2]
[328577259,1717557042621,-500.0,0.00021917,2]
[328577260,1717557042630,-500.0,0.00021917,2]
[328577261,1717557042639,-500.0,0.00021917,2]
[328577262,1717557042648,-500.0,0.00021917,2]
[328577263,1717557042657,-503.40313851,0.00021917,2]
[328577264,1717557042666,-500.0,0.00021917,2]
[328577265,1717557042677,-606.24194053,0.00021917,2]
[328577266,1717557042686,-500.7212057,0.00021917,2]
[328577267,1717557042695,-500.0,0.00021917,2]
[328577268,1717557042704,-447.39857339,0.00021917,2]
[328577269,1717557042713,-506.61586298,0.00021917,2]
[328577270,1717557042722,-595.53255756,0.00021917,2]
[328577271,1717557042732,-500.0,0.00021917,2]
[328577272,1717557042741,-502.06883644,0.00021917,2]
[328577273,1717557042750,-500.0,0.00021917,2]
[328577274,1717557042759,-502.42121435,0.00021917,2]
[328577275,1717557042769,-500.0,0.00021917,2]
[328577276,1717557042777,-500.0,0.00021917,2]
[328577277,1717557042786,-500.0,0.00021917,2]
[328577278,1717557042796,-512.53119671,0.00021917,2]
[328577279,1717557042807,-200.0,0.00021917,2]
[328577280,1717557042818,-503.209936,0.00021917,2]
[328577281,1717557042827,-504.59532826,0.00021917,2]
[328577282,1717557042836,-503.67129035,0.00021917,2]
[328577283,1717557042844,-500.0,0.00021917,2]
[328577284,1717557042853,-500.56197893,0.00021917,2]
[328577285,1717557042863,-506.16807337,0.00021917,2]
[328577286,1717557042871,-502.48155199,0.00021917,2]
[328577287,1717557042881,-504.64531027,0.00021917,2]
[328577288,1717557042890,-500.0,0.00021917,2]
[328577289,1717557042900,-153.423864,0.00021917,2]
[328577290,1717557042909,-500.0,0.00021917,2]
[328577291,1717557042918,-500.0,0.00021917,2]
[328577292,1717557042929,-502.82307046,0.00021917,2]
[328577293,1717557042938,-503.68292035,0.00021917,2]
[328577294,1717557042947,-151.0,0.00021917,2]
[328577295,1717557042956,-504.43394987,0.00021917,2]
[328577296,1717557042965,-216.38957,0.00021917,2]
[328577297,1717557042974,-506.82390479,0.00021917,2]
[328577298,1717557042983,-506.52564257,0.00021917,2]
[328577299,1717557042992,-505.68726418,0.00021917,2]
[328577300,1717557043002,-500.0,0.00021917,2]
[328577301,1717557043011,-508.57930287,0.00021917,2]
[328577302,1717557043019,-503.72114202,0.00021917,2]
[328577303,1717557043028,-500.0,0.00021917,2]
[328577304,1717557043037,-500.0,0.00021917,2]
[328577305,1717557043047,-500.0,0.00021917,2]
[328577306,1717557043056,-500.0,0.00021917,2]
[328577307,1717557043065,-566.1193543,0.00021917,2]
[328577308,1717557043074,-500.0,0.00021917,2]
[328577309,1717557043083,-500.0,0.00021917,2]
[328577310,1717557043092,-500.0,0.00021917,2]
[328577311,1717557043101,-500.0,0.00021917,2]
[328577312,1717557043110,-500.0,0.00021917,2]
[328577313,1717557043119,-500.0,0.00021917,2]
[328577314,1717557043129,-500.0,0.00021917,2]
[328577315,1717557043138,-151.0,0.00021917,2]
[328577316,1717557043147,-152.443719,0.00021917,2]
[328577317,1717557043156,-155.79903,0.00021917,2]
[328577318,1717557043165,-506.74281543,0.00021917,2]
[328577319,1717557043176,-500.0,0.00021917,2]
[328577320,1717557043185,-504.59994822,0.00021917,2]
[328577321,1717557043195,-568.47787218,0.00021917,2]
[328577322,1717557043204,-500.0,0.00021917,2]
[328577323,1717557043213,-152.146343,0.00021917,2]
[328577324,1717557043222,-504.83606179,0.00021917,2]
[328577325,1717557043231,-500.0,0.00021917,2]
[328577326,1717557043240,-500.0,0.00021917,2]
[328577327,1717557043250,-500.0,0.00021917,2]
[328577328,1717557043259,-500.0,0.00021917,2]
[328577329,1717557043268,-500.0,0.00021917,2]
[328577330,1717557043277,-502.52654798,0.00021917,2]
[328577331,1717557043286,-500.0,0.00021917,2]
[328577332,1717557043295,-151.0,0.00021917,2]
[328577333,1717557043304,-151.0,0.00021917,2]
[328577334,1717557043313,-151.0,0.00021917,2]
[328577335,1717557043322,-151.0,0.00021917,2]
[328577336,1717557043332,-151.0,0.00021917,2]
[328577337,1717557043343,-153.594412,0.00021917,2]
[328577338,1717557043354,-506.52930073,0.00021917,2]
[328577339,1717557043363,-227.937482,0.00021917,2]
[328577340,1717557043372,-227.937482,0.00021917,2]
[328577342,1717557043381,-227.937482,0.00021917,2]
[328577344,1717557043390,-227.937482,0.00021917,2]
[328577345,1717557043400,-227.937482,0.00021917,2]
[328577347,1717557043410,-227.937482,0.00021917,2]
[328577349,1717557043422,-227.937482,0.00021917,2]
[328577351,1717557043432,-227.937482,0.00021917,2]
[328577353,1717557043441,-227.937482,0.00021917,2]
[328577354,1717557043450,-227.937482,0.00021917,2]
[328577356,1717557043459,-227.937482,0.00021917,2]
[328577357,1717557043469,-227.937482,0.00021917,2]
[328577358,1717557043478,-227.937482,0.00021917,2]
[328577359,1717557043487,-227.937482,0.00021917,2]
[328577360,1717557043497,-227.937482,0.00021917,2]
[328577361,1717557043506,-227.937482,0.00021917,2]
[328577362,1717557043515,-227.937482,0.00021917,2]
[328577363,1717557043525,-227.937482,0.00021917,2]
[328577364,1717557043533,-510.85235148,0.00021917,2]
[328577365,1717557043543,-507.49845182,0.00021917,2]
[328577366,1717557043553,-590.45366221,0.00021917,2]
[328577367,1717557043563,-510.59006045,0.00021917,2]
[328577368,1717557043572,-506.74962309,0.00021917,2]
[328577369,1717557043581,-154.29374,0.00021917,2]
[328577370,1717557043590,-154.14369,0.00021917,2]
[328577371,1717557043599,-505.88030075,0.00021917,2]
[328577372,1717557043608,-2764.97,0.00021917,2]
[328577373,1717557043617,-506.51446692,0.00021917,2]
[328577374,1717557043628,-500.0,0.00021917,2]
[328577375,1717557043637,-504.34274014,0.00021917,2]
[328577376,1717557043647,-503.61722243,0.00021917,2]
[328577377,1717557043657,-190.407743,0.00021917,2]
[328577378,1717557043666,-190.407743,0.00021917,2]
[328577379,1717557043676,-190.407743,0.00021917,2]
[328577380,1717557043685,-190.407743,0.00021917,2]
[328577381,1717557043695,-190.407743,0.00021917,2]
[328577382,1717557043705,-190.407743,0.00021917,2]
[328577383,1717557043718,-505.82041543,0.00021917,2]
[328577384,1717557043727,-190.407743,0.00021917,2]
[328577385,1717557043736,-190.407743,0.00021917,2]
[328577386,1717557043745,-190.407743,0.00021917,2]
[328577387,1717557043754,-504.89218265,0.00021917,2]
[328577389,1717557043763,-190.407743,0.00021917,2]
[328577391,1717557043772,-190.407743,0.00021917,2]
[328577392,1717557043781,-190.407743,0.00021917,2]
[328577393,1717557043791,-190.407743,0.00021917,2]
[328577394,1717557043800,-190.407743,0.00021917,2]
[328577395,1717557043809,-500.0,0.00021917,2]
[328577396,1717557043818,-500.0,0.00021917,2]
[328577397,1717557043827,-190.407743,0.00021917,2]
[328577398,1717557043837,-190.407743,0.00021917,2]
[328577399,1717557043846,-190.407743,0.00021917,2]
[328577400,1717557043855,-190.407743,0.00021917,2]
[328577401,1717557043865,-500.0,0.00021917,2]
[328577402,1717557043874,-506.04992842,0.00021917,2]
[328577403,1717557043885,-504.43082879,0.00021917,2]
[328577404,1717557043894,-546.28,0.00021917,2]
[328577405,1717557043905,-479.0752254,0.00021917,2]
[328577406,1717557043916,-500.0,0.00021917,2]
[328577407,1717557043927,-1651.59,0.00021917,2]
[328577408,1717557043936,-429.77623456,0.00021917,2]
[328577409,1717557043945,-880.644521,0.00021917,2]
[328577410,1717557043955,-880.644521,0.00021917,2]
[328577411,1717557043964,-880.644521,0.00021917,2]
[328577412,1717557043974,-880.644521,0.00021917,2]
[328577413,1717557043984,-880.644521,0.00021917,2]
[328577414,1717557043993,-500.0,0.00021917,2]
[328577415,1717557044004,-880.644521,0.00021917,2]
[328577416,1717557044013,-880.644521,0.00021917,2]
[328577417,1717557044022,-880.644521,0.00021917,2]
[328577418,1717557044031,-880.644521,0.00021917,2]
[328577419,1717557044040,-880.644521,0.00021917,2]
[328577420,1717557044050,-355.857948,0.00021917,2]
[328577421,1717557044059,-880.644521,0.00021917,2]
[328577422,1717557044068,-355.857948,0.00021917,2]
[328577423,1717557044077,-880.644521,0.00021917,2]
[328577424,1717557044086,-880.644521,0.00021917,2]
[328577425,1717557044096,-355.857948,0.00021917,2]
[328577426,1717557044104,-880.644521,0.00021917,2]
[328577427,1717557044113,-355.857948,0.00021917,2]
[328577428,1717557044123,-880.644521,0.00021917,2]
[328577429,1717557044132,-355.857948,0.00021917,2]
[328577430,1717557044141,-880.644521,0.00021917,2]
[328577431,1717557044150,-355.857948,0.00021917,2]
[328577432,1717557044159,-880.644521,0.00021917,2]
[328577433,1717557044168,-355.857948,0.00021917,2]
[328577434,1717557044178,-880.644521,0.00021917,2]
[328577435,1717557044187,-355.857948,0.00021917,2]
[328577436,1717557044196,-355.857948,0.00021917,2]
[328577437,1717557044205,-506.80575408,0.00021917,2]
[328577438,1717557044214,-355.857948,0.00021917,2]
[328577439,1717557044223,-355.857948,0.00021917,2]
[328577440,1717557044233,-355.857948,0.00021917,2]
[328577441,1717557044242,-355.857948,0.00021917,2]
[328577442,1717557044251,-355.857948,0.00021917,2]
[328577443,1717557044260,-355.857948,0.00021917,2]
[328577444,1717557044270,-355.857948,0.00021917,2]
[328577445,1717557044366,-500.0,0.00021917,2]
[328577446,1717557044376,-355.857948,0.00021917,2]
[328577447,1717557044386,-355.857948,0.00021917,2]
[328577448,1717557044396,-500.0,0.00021917,2]
[328577449,1717557044406,-618.58,0.00021917,2]
[328577451,1717557044415,-500.0,0.00021917,2]
[328577452,1717557044425,-162.88365,0.00021917,2]
[328577453,1717557044437,-162.88365,0.00021917,2]
[328577454,1717557044448,-162.88365,0.00021917,2]
[328577455,1717557044457,-162.88365,0.00021917,2]
[328577456,1717557044466,-162.88365,0.00021917,2]
[328577457,1717557044475,-500.0,0.00021917,2]
[328577458,1717557044484,-162.88365,0.00021917,2]
[328577459,1717557044494,-162.88365,0.00021917,2]
[328577460,1717557044503,-500.0,0.00021917,2]
[328577461,1717557044512,-162.88365,0.00021917,2]
[328577462,1717557044522,-500.0,0.00021917,2]
[328577463,1717557044531,-162.88365,0.00021917,2]
[328577464,1717557044540,-162.88365,0.00021917,2]
[328577465,1717557044549,-162.88365,0.00021917,2]
[328577466,1717557044558,-162.88365,0.00021917,2]
[328577467,1717557044568,-162.88365,0.00021917,2]
[328577468,1717557044577,-162.88365,0.00021917,2]
[328577469,1717557044586,-500.0,0.00021917,2]
[328577470,1717557044595,-162.88365,0.00021917,2]
[328577471,1717557044604,-162.88365,0.00021917,2]
[328577472,1717557044614,-162.88365,0.00021917,2]
[328577473,1717557044623,-162.88365,0.00021917,2]
[328577474,1717557044632,-503.39866182,0.00021917,2]
[328577475,1717557044642,-504.16190115,0.00021917,2]
[328577476,1717557044651,-505.36383357,0.00021917,2]
[328577477,1717557044660,-500.0,0.00021917,2]
[328577478,1717557044669,-500.0,0.00021917,2]
[328577479,1717557044680,-1749.38,0.00021917,2]
[328577480,1717557044689,-506.58036318,0.00021917,2]
[328577481,1717557044698,-504.75316069,0.00021917,2]
[328577482,1717557044708,-524.98009584,0.00021917,2]
[328577483,1717557044717,-508.52137491,0.00021917,2]
[328577484,1717557044726,-500.0,0.00021917,2]
[328577485,1717557044735,-728.57,0.00021917,2]
[328577486,1717557044744,-500.0,0.00021917,2]
[328577487,1717557044753,-517.95307957,0.00021917,2]
[328577488,1717557044762,-504.05841069,0.00021917,2]
[328577489,1717557044771,-208.97881899,0.00021917,2]
[328577490,1717557044781,-500.0,0.00021917,2]
[328577491,1717557044790,-284.427649,0.00021917,2]
[328577492,1717557044799,-284.427649,0.00021917,2]
[328577493,1717557044808,-284.427649,0.00021917,2]
[328577494,1717557044817,-284.427649,0.00021917,2]
[328577495,1717557044826,-508.22043904,0.00021917,2]
[328577496,1717557044835,-284.427649,0.00021917,2]
[328577497,1717557044844,-284.427649,0.00021917,2]
[328577498,1717557044853,-500.0,0.00021917,2]
[328577499,1717557044862,-284.427649,0.00021917,2]
[328577500,1717557044871,-284.427649,0.00021917,2]
[328577501,1717557044880,-284.427649,0.00021917,2]
[328577502,1717557044889,-284.427649,0.00021917,2]
[328577503,1717557044899,-284.427649,0.00021917,2]
[328577504,1717557044908,-284.427649,0.00021917,2]
[328577505,1717557044917,-284.427649,0.00021917,2]
[328577506,1717557044928,-500.0,0.00021917,2]
[328577507,1717557044937,-284.427649,0.00021917,2]
[328577508,1717557044946,-284.427649,0.00021917,2]
[328577509,1717557044955,-284.427649,0.00021917,2]
[328577510,1717557044964,-284.427649,0.00021917,2]
[328577511,1717557044973,-284.427649,0.00021917,2]
[328577512,1717557044982,-151.0,0.00021917,2]
[328577513,1717557044991,-151.0,0.00021917,2]
[328577514,1717557045000,-152.428516,0.00021917,2]
[328577515,1717557045009,-500.0,0.00021917,2]
[328577516,1717557045018,-151.0,0.00021917,2]
[328577517,1717557045027,-151.0,0.00021917,2]
[328577518,1717557045036,-151.0,0.00021917,2]
[328577519,1717557045045,-151.0,0.00021917,2]
[328577520,1717557045054,-151.0,0.00021917,2]
[328577521,1717557045063,-507.75507704,0.00021917,2]
[328577522,1717557045072,-249.290832,0.00021917,2]
[328577523,1717557045081,-500.0,0.00021917,2]
[328577524,1717557045090,-151.0,0.00021917,2]
[328577525,1717557045100,-151.0,0.00021917,2]
[328577526,1717557045109,-151.0,0.00021917,2]
[328577527,1717557045118,-206.417553,0.00021917,2]
[328577528,1717557045127,-500.0,0.00021917,2]
[328577529,1717557045137,-500.0,0.00021917,2]
[328577530,1717557045146,-500.0,0.00021917,2]
[328577531,1717557045156,-506.3642013,0.00021917,2]
[328577532,1717557045165,-500.0,0.00021917,2]
[328577533,1717557045174,-500.0,0.00021917,2]
[328577534,1717557045184,-500.64257519,0.00021917,2]
[328577535,1717557045194,-507.68456899,0.00021917,2]